Workbook

Sheet Exemplo 1
A1: Entrada | D1: Entrada Ajustada | G1: Rank | K1: Estatística Básica | L1: =A2 -> cadastro | M1: =B2 -> promoção
A2: cadastro | B2: promoção | D2: =A2 -> cadastro | E2: =B2 -> promoção | G2: =A2 -> cadastro | H2: =B2 -> promoção | K2: Qtd | L2: =COUNT(A:A) -> 24 | M2: =COUNT(B:B) -> 24 | P2: Configuração
A3: 5 | B3: 1 | D3: =IF($Q$7,IF(A3>B3,A3-B3,""),A3) -> 4 | E3: =IF($Q$7,IF(B3>A3,B3-A3,""),B3) ->  | G3: =IF(D3<>"",_xlfn.RANK.AVG(D3,D:E,1),"") -> 13.5 | K3: min | L3: =MIN(A:A) -> 1 | M3: =MIN(B:B) -> 1 | P3: Número de amostras | Q3: 2
A4: 2 | B4: 1 | D4: =IF($Q$7,IF(A4>B4,A4-B4,""),A4) -> 1 | E4: =IF($Q$7,IF(B4>A4,B4-A4,""),B4) ->  | G4: =IF(D4<>"",_xlfn.RANK.AVG(D4,D:E,1),"") -> 3 | H4: =IF(E4<>"",_xlfn.RANK.AVG(E4,E:F,1),"") ->  | K4: q1 | L4: =QUARTILE(A:A,1) -> 1.75 | M4: =QUARTILE(B:B,1) -> 1 | P4: Hipótese de Diferença da Média | Q4: 0
A5: 2 | B5: 1 | D5: 1 | G5: 3 | K5: mediana | L5: =QUARTILE(A:A,2) -> 3 | M5: =QUARTILE(B:B,2) -> 1 | P5: Nível de Significância | Q5: 0.05
A6: 6 | B6: 3 | D6: 3 | G6: 10 | K6: q3 | L6: =QUARTILE(A:A,3) -> 5.25 | M6: =QUARTILE(B:B,3) -> 2 | P6: Paramétrica | Q6: TRUE
A7: 5 | B7: 1 | D7: 4 | G7: 13.5 | K7: max | L7: =MAX(A:A) -> 10 | M7: =MAX(B:B) -> 8 | P7: Pareada | Q7: TRUE
A8: 1 | B8: 2 | E8: 1 | H8: 1.5 | K8: média | L8: =AVERAGE(A:A) -> 3.791666667 | M8: =AVERAGE(B:B) -> 2.083333333
A9: 10 | B9: 2 | D9: 8 | G9: 21 | P9: Cenário | Q9: =IF(Q3=1,1,IF(Q6,2,3)) -> 2
A10: 4 | B10: 1 | D10: 3 | G10: 10 | P10: =CONCATENATE("Veja: ",IF(Q9=1,"Análise Paramétrica (uma amostra)",IF(Q9=2,"Análise Paramétrica (duas amostras)","Análise não-paramétrica (duas amostras)"))) -> Veja: Análise Paramétrica (duas amostras)
A11: 9 | B11: 4 | D11: 5 | G11: 17
A12: 4 | B12: 1 | D12: 3 | G12: 10 | P12: Análise Paramétrica (uma amostra)
A13: 2 | B13: 4 | E13: 2 | H13: 3 | P13: Amostras | Q13: =A2 -> cadastro | R13: alvo
A14: 1 | B14: 1 | P14: Tamanho | Q14: =COUNT($A:$A) -> 24
A15: 2 | B15: 1 | D15: 1 | G15: 3 | P15: Média | Q15: =AVERAGE($A:$A) -> 3.791666667 | R15: 3
A16: 8 | B16: 1 | D16: 7 | G16: 19.5 | P16: Desvio padrão | Q16: =STDEV($A:$A) -> 2.734309652
A17: 1 | B17: 1 | P17: Graus de Liberdade | Q17: =Q14-1 -> 23
A18: 7 | B18: 2 | D18: 5 | G18: 17
A19: 1 | B19: 2 | E19: 1 | H19: 1.5 | P19: Cálculos Intermediários
A20: 3 | B20: 1 | D20: 2 | G20: 7 | P20: Erro-Padrão da Média Aritmética | Q20: =Q16/SQRT(Q14) -> 0.5581386206
A21: 2 | B21: 7 | E21: 5 | H21: 4 | P21: Estatística do Teste Z | Q21: =(Q15-R15)/Q20 -> 1.418405101
A22: 1 | B22: 1
A23: 1 | B23: 8 | E23: 7 | H23: 5 | P23: =CONCATENATE("H0: '",A2,"' = '",R15,"'") -> H0: 'cadastro' = '3'
A24: 6 | B24: 2 | D24: 4 | G24: 13.5
A25: 5 | B25: 1 | D25: 4 | G25: 13.5 | P25: =CONCATENATE("H1: '",A2,"' != '",R15,"' - teste bicaudal") -> H1: 'cadastro' != '3' - teste bicaudal
A26: 3 | B26: 1 | D26: 2 | G26: 7 | P26: Valor Crítico Inferior/Superior | Q26: =NORMSINV(Q5/2) -> -1.959963985 | R26: =NORMSINV(1-Q5/2) -> 1.959963985
P27: Valor-p | Q27: =2*(1-NORMSDIST(ABS(Q21))) -> 0.1560725271
P28: =IF(Q$9<>1,"*",IF(Q27<Q5,"Rejeitar a hipótese nula ('não são iguais')","Não rejeitar a hipótese nula ('são iguais')")) -> *
P30: =CONCATENATE("H1-: '",A2,"' < '",R15,"' - teste da cauda inferior") -> H1-: 'cadastro' < '3' - teste da cauda inferior
P31: Valor Crítico Inferior | Q31: =NORMSINV(Q5) -> -1.644853627
P32: Valor-p | Q32: =NORMSDIST(Q21) -> 0.9219637364
P33: =IF(Q$9<>1,"*",IF(Q32<Q5,"Rejeitar a hipótese nula ('é menor')","Não rejeitar a hipótese nula ('não é menor')")) -> *
P35: =CONCATENATE("H1+: '",A2,"' > '",R15,"' - teste da cauda superior") -> H1+: 'cadastro' > '3' - teste da cauda superior
P36: Valor Crítico Superior | Q36: =NORMSINV(1-Q5) -> 1.644853627
P37: Valor-p | Q37: =1-NORMSDIST(Q21) -> 0.07803626357
P38: =IF(Q$9<>1,"*",IF(Q37<Q5,"Rejeitar a hipótese nula ('é maior)","Não rejeitar a hipótese nula ('não é maior')")) -> *
P41: Análise Paramétrica (duas amostras)
P42: Amostras | Q42: =A2 -> cadastro | R42: =B2 -> promoção
P43: Tamanho | Q43: =COUNT($A:$A) -> 24 | R43: =COUNT($B:$B) -> 24
P44: Média | Q44: =AVERAGE($A:$A) -> 3.791666667 | R44: =AVERAGE($B:$B) -> 2.083333333
P45: Desvio padrão | Q45: =STDEV($A:$A) -> 2.734309652 | R45: =STDEV($B:$B) -> 1.909169331
P46: Graus de Liberdade | Q46: =Q43-1 -> 23 | R46: =R43-1 -> 23
P48: Calculos intermediários
P49: Total de Graus de Liberdade | Q49: =IF(Q7,MIN(Q46,R46),Q46+R46) -> 23
P50: Teste de variância F | Q50: =_xlfn.F.TEST($A:$A,$B:$B)/2 -> 0.04585137003
P51: Homocedástica | Q51: =Q50>Q5 -> FALSE
P52: Estatística do Teste t | Q52: =_xlfn.T.INV(Q53,Q49)*IF(Q44>R44,-1,1) -> 2.420520196
P53: DISTT | Q53: =_xlfn.T.TEST($A:$A,$B:$B,1,IF(Q7,1,IF(Q51,2,3))) -> 0.01189957775
P54: 1-DISTT | Q54: =1-Q53 -> 0.9881004223
P56: =CONCATENATE("H0: '",A2,"' = '",B2,"'") -> H0: 'cadastro' = 'promoção'
P58: =CONCATENATE("H1: '",A2,"' != '",B2,"' - teste bicaudal") -> H1: 'cadastro' != 'promoção' - teste bicaudal
P59: Valor Crítico Inferior/Superior | Q59: =-(TINV(Q5,Q49)) -> -2.06865761 | R59: =TINV(Q5,Q49) -> 2.06865761
P60: Valor-p | Q60: =Q53*2 -> 0.02379915549
P61: =IF(Q$9<>2,"*",IF(Q60<Q5,"Rejeitar a hipótese nula ('não são iguais')","Não rejeitar a hipótese nula ('são iguais')")) -> Rejeitar a hipótese nula ('não são iguais')
P63: =CONCATENATE("H1-: '",A2,"' < '",B2,"' - teste da cauda inferior") -> H1-: 'cadastro' < 'promoção' - teste da cauda inferior
P64: Valor Crítico Inferior | Q64: =-(TINV(2*Q5,Q49)) -> -1.713871528
P65: Valor-p | Q65: =IF(Q52<0,Q53,Q54) -> 0.9881004223
P66: =IF(Q$9<>2,"*",IF(Q65<Q5,"Rejeitar a hipótese nula ('é menor')","Não rejeitar a hipótese nula ('não é menor')")) -> Não rejeitar a hipótese nula ('não é menor')
P68: =CONCATENATE("H1+: '",A2,"' > '",B2,"' - teste da cauda superior") -> H1+: 'cadastro' > 'promoção' - teste da cauda superior
P69: Valor Crítico Superior | Q69: =(TINV(2*Q5,Q49)) -> 1.713871528
P70: Valor-p | Q70: =IF(Q52<0,Q54,Q53) -> 0.01189957775
P71: =IF(Q$9<>2,"*",IF(Q70<Q5,"Rejeitar a hipótese nula ('é maior)","Não rejeitar a hipótese nula ('não é maior')")) -> Rejeitar a hipótese nula ('é maior)
P74: Análise Não Paramétrica (duas amostras)
P75: Amostras | Q75: =A2 -> cadastro | R75: =B2 -> promoção
P76: Tamanho | Q76: =COUNT(G:G) -> 16 | R76: =COUNT(H:H) -> 5
P77: Soma | Q77: =SUM(G:G) -> 181.5 | R77: =SUM(H:H) -> 15
P79: Calculos intermediários
P80: Tamanho Total da Amostra n | Q80: =Q76+R76 -> 21
P81: Estatística do Teste T1 | Q81: =IF(Q76<=R76,Q77,R77) -> 15
P82: Média Aritmética de T1 | Q82: =IF(Q76<=R76,Q76*(Q80+1)/2,R76*(Q80+1)/2) -> 55
P83: Erro Padrão de T1 | Q83: =SQRT(Q76*R76*(Q80+1)/12) -> 12.11060142
P84: Estatística do Teste Z | Q84: =(Q81-Q82)/Q83 -> -3.302891295
P86: =CONCATENATE("H0: '",A2,"' = '",B2,"'") -> H0: 'cadastro' = 'promoção'
P88: =CONCATENATE("H1: '",A2,"' != '",B2,"' - teste bicaudal") -> H1: 'cadastro' != 'promoção' - teste bicaudal
P89: Valor Crítico Inferior/Superior | Q89: =NORMSINV(Q5/2) -> -1.959963985 | R89: =NORMSINV(1-Q5/2) -> 1.959963985
P90: Valor-p | Q90: =2*(1-NORMSDIST(ABS(Q84))) -> 0.0009569347564
P91: =IF(Q$9<>3,"*",IF(Q90<$Q$5,"Rejeitar a hipótese nula ('não são iguais')","Não rejeitar a hipótese nula ('são iguais')")) -> *
P93: =CONCATENATE("H1: '",A2,"' < '",B2,"' - teste da cauda inferior") -> H1: 'cadastro' < 'promoção' - teste da cauda inferior
P94: Valor Crítico Inferior | Q94: =NORMSINV(Q5) -> -1.644853627
P95: Valor-p | Q95: =NORMSDIST(Q84) -> 0.0004784673782
P96: =IF(Q$9<>3,"*",IF(Q95<$Q$5,"Rejeitar a hipótese nula ('é menor')","Não rejeitar a hipótese nula (não é menor'")) -> *
P98: =CONCATENATE("H1: '",A2,"' > '",B2,"' - teste da cauda superior") -> H1: 'cadastro' > 'promoção' - teste da cauda superior
P99: Valor Crítico Superior | Q99: =NORMSINV(1-Q5) -> 1.644853627
P100: Valor-p | Q100: =1-NORMSDIST(Q84) -> 0.9995215326
P101: =IF(Q$9<>3,"*",IF(Q100<$Q$5,"Rejeitar a hipótese nula ('é maior')","Não rejeitar a hipótese nula ('não é maior')")) -> *
